fUSD/lending_fUSD_20240319
["ID","MTS","AMOUNT","RATE_DAILY","PERIOD"]
[319546858,1710842538032,369.75264779,0.00025947,2]
[319546859,1710842541909,152.81505466,0.00025974,2]
[319546860,1710842542991,161.52428066,0.00025362,2]
[319546861,1710842617497,250.0,0.00023,3]
[319546862,1710842720016,1802.0,0.000189,2]
[319546863,1710842724155,600.0,0.000247,2]
[319546869,1710842838709,345.10247127,0.00024477,2]
[319546870,1710842839805,345.10247127,0.00025055,2]
[319546872,1710842841267,150.22582219,0.00024533,2]
[319546873,1710842841371,152.81505466,0.00025276,2]
[319546874,1710842841671,152.81505466,0.00025453,2]
[319546875,1710842842236,168.49322419,0.00024455,2]
[319546876,1710842842351,176.99758743,0.00025292,2]
[319546877,1710842847943,152.77514418,0.00025565,2]
[319546878,1710842848337,179.589978,0.00024689,2]
[319546879,1710842848472,154.11102107,0.0002525,2]
[319546886,1710842975870,747.0,0.000189,2]
[319546887,1710842977293,710.0,0.000189,2]
[319546936,1710843031821,-529.37904197,0.00026055,2]
[319546937,1710843031831,-534.12503528,0.00026056,2]
[319546939,1710843031841,-3358.62687147,0.00026199,2]
[319546963,1710843032721,-5942.54137789,0.00026199,2]
[319546966,1710843032732,-513.09014822,0.00026199,2]
[319546968,1710843032749,-729.02569667,0.00026199,2]
[319546970,1710843032762,-564.11666661,0.000262,2]
[319546972,1710843032772,-178.30962825,0.00026349,8]
[319546975,1710843032782,-156.90919703,0.00026373,2]
[319546977,1710843032792,-166.4858283,0.00026399,2]
[319546979,1710843032802,-87.54543823,0.000264,5]
[319546981,1710843032814,-829.10000005,0.000264,5]
[319546985,1710843032839,-17897.94848924,0.000264,5]
[319546987,1710843032856,-19989.22044949,0.000264,5]
[319546989,1710843032865,-5357.88,0.00026404,2]
[319546991,1710843032875,-299.99,0.00026438,12]
[319546994,1710843032885,-224.99,0.00026438,8]
[319546996,1710843032895,-999.99,0.00026449,2]
[319546997,1710843032906,-33456.1,0.00026449,2]
[319546999,1710843032916,-499.99,0.00026449,2]
[319547000,1710843032926,-150.53,0.0002648,2]
[319547002,1710843032936,-345.10247127,0.0002661,2]
[319547004,1710843032946,-152.81505466,0.00026637,2]
[319547006,1710843032956,-156.51853803,0.00026746,2]
[319547008,1710843032966,-157.82775288,0.00026813,2]
[319547010,1710843032976,-164.36116901,0.00026934,2]
[319547012,1710843032986,-167.0,0.0002727,2]
[319547014,1710843032996,-151.16603037,0.00027274,2]
[319547016,1710843033006,-157.82775288,0.00027397,2]
[319547019,1710843033023,-345.10247127,0.00027425,2]
[319547021,1710843033033,-369.43514499,0.00027426,2]
[319547023,1710843033044,-345.10247127,0.0002753,2]
[319547025,1710843033055,-341.56,0.00027686,120]
[319547027,1710843033065,-150.22582219,0.00027729,2]
[319547029,1710843033076,-150.22582219,0.00027857,2]
[319547031,1710843033086,-205.98,0.00028234,2]
[319547033,1710843033096,-369.43514499,0.00028237,2]
[319547034,1710843033107,-176.52,0.0002824,2]
[319547037,1710843033119,-150.22582219,0.00028282,2]
[319547038,1710843033129,-167.0,0.00028351,2]
[319547040,1710843033139,-250.0,0.00028382,2]
[319547043,1710843033149,-250.0,0.00028408,2]
[319547045,1710843033160,-150.0,0.00028421,2]
[319547047,1710843033170,-369.43514499,0.00028451,2]
[319547049,1710843033180,-399.66,0.00028675,2]
[319547051,1710843033190,-250.0,0.00028694,2]
[319547053,1710843033200,-369.43514499,0.00028764,2]
[319547055,1710843033210,-596.41,0.00028812,2]
[319547057,1710843033220,-1937.45,0.00028871,2]
[319547059,1710843033230,-651.17400601,0.0002889,2]
[319547068,1710843033311,-2496.81729399,0.0002889,2]
[319547071,1710843033323,-152.81505466,0.00028899,2]
[319547073,1710843033333,-159.59,0.00028994,10]
[319547075,1710843033344,-76.23055135,0.00029,120]
[319547077,1710843033357,-1120.82736001,0.00029,120]
[319547079,1710843033367,-150.53,0.0002901,2]
[319547081,1710843033377,-375.64263999,0.00029017,2]
[319547084,1710843033390,-351.26395773,0.00029017,2]
[319547086,1710843033405,-719.9,0.00029017,2]
[319547165,1710843037747,-358.21236,0.00026054,2]
[319547166,1710843037760,-285.16728686,0.00026054,2]
[319547168,1710843037777,-3529.76071314,0.00028408,2]
[319547170,1710843037789,-12290.00001,0.00028408,2]
[319547173,1710843037805,-4318.127187,0.00028408,2]
[319547175,1710843037817,-1311.1,0.00028408,2]
[319547178,1710843037830,-300.0,0.00028408,2]
[319547180,1710843037845,-623.14466084,0.00028408,2]
[319547182,1710843037857,-275.229354,0.00028408,2]
[319547185,1710843037868,-1252.63807502,0.00028408,2]
[319547187,1710843037878,-6672.89630176,0.00029022,2]
[319547189,1710843037888,-1432.09311141,0.00029037,2]
[319547192,1710843037930,-641.78101,0.00029037,2]
[319547195,1710843037946,-2353.43052464,0.00029037,2]
[319547197,1710843037958,-714.99371217,0.00029037,2]
[319547199,1710843037970,-194.70164178,0.00029037,2]
[319547201,1710843037979,-482.1,0.00029157,2]
[319547203,1710843037990,-152.81505466,0.0002917,2]
[319547205,1710843038000,-369.43514499,0.00029227,2]
[319547207,1710843038010,-482.1,0.00029237,2]
[319547210,1710843038026,-345.10247127,0.00029293,2]
[319547211,1710843038036,-482.1,0.00029317,2]
[319547213,1710843038045,-482.1,0.00029397,2]
[319547214,1710843038055,-167.0,0.00029431,2]
[319547215,1710843038064,-482.1,0.00029477,2]
[319547216,1710843038073,-154.11102107,0.00029496,2]
[319547217,1710843038083,-482.1,0.00029557,2]
[319547218,1710843038092,-440.27815331,0.00029637,2]
[319547219,1710843038122,-41.82184669,0.00029637,2]
[319547220,1710843038133,-151.26304278,0.000297,2]
[319547221,1710843038143,-482.1,0.00029717,2]
[319547222,1710843038154,-482.1,0.00029797,2]
[319547223,1710843038164,-152.81505466,0.00029799,2]
[319547224,1710843038175,-183.17408248,0.00029801,2]
[319547225,1710843038185,-269.6855841,0.00029877,2]
[319547237,1710843039873,-212.4144159,0.00029877,2]
[319547238,1710843039882,-168.12639627,0.00029957,2]
[319547239,1710843039894,-256.89893274,0.00029957,2]
[319547240,1710843039938,-57.07467099,0.00029957,2]
[319547241,1710843039947,-1000.07439358,0.0003,14]
[319547242,1710843039964,-159.03081543,0.0003,2]
[319547243,1710843039976,-307.59761601,0.0003,2]
[319547244,1710843039992,-33.37156856,0.0003,2]
[319547245,1710843040003,-291.5751487,0.00030028,7]
[319547246,1710843040042,-77.85999629,0.00030028,7]
[319547247,1710843040052,-482.1,0.00030037,2]
[319547248,1710843040063,-928.14,0.00030051,2]
[319547249,1710843040075,-482.1,0.00030117,2]
[319547250,1710843040087,-187.27,0.00030125,2]
[319547251,1710843040108,-161.52428066,0.00030128,7]
[319547252,1710843040117,-482.1,0.00030197,2]
[319547253,1710843040126,-482.1,0.00030277,2]
[319547254,1710843040136,-235.21463681,0.00030357,2]
[319547255,1710843040153,-246.88536319,0.00030357,2]
[319547256,1710843040163,-369.43514499,0.00030394,7]
[319547257,1710843040174,-482.1,0.00030437,2]
[319547258,1710843040184,-161.52428066,0.00030507,7]
[319547259,1710843040196,-167.0,0.00030512,2]
[319547260,1710843040206,-482.1,0.00030517,2]
[319547261,1710843040216,-482.1,0.00030597,2]
[319547262,1710843040226,-154.24,0.0003065,2]
[319547264,1710843040235,-482.1,0.00030677,2]
[319547266,1710843040246,-154.11102107,0.00030741,7]
[319547268,1710843040255,-154.11102107,0.00030747,7]
[319547269,1710843040269,-341.56,0.00030762,120]
[319547271,1710843040278,-151.16603037,0.00030856,7]
[319547273,1710843040288,-152.81505466,0.00030986,7]
[319547275,1710843040298,-1963.74068504,0.00031042,2]
[319547277,1710843040310,-3602.21195516,0.00031042,2]
[319547279,1710843040321,-4128.63986883,0.00031042,2]
[319547282,1710843040333,-3933.36463944,0.00031042,2]
[319547284,1710843040344,-4432.26839026,0.00031042,2]
[319547286,1710843040355,-6757.96750055,0.00031042,2]
[319547288,1710843040368,-27404.02185511,0.00031042,2]
[319547290,1710843040379,-702.576,0.00031042,2]
[319547292,1710843040390,-714.48834905,0.00031042,2]
[319547294,1710843040403,-1193.3016,0.00031042,2]
[319547298,1710843040435,-11405.49994878,0.00031042,2]
[319547300,1710843040446,-999.04,0.00031042,2]
[319547303,1710843040457,-639.51,0.00031042,2]
[319547306,1710843040484,-1535.9116253,0.00031042,2]
[319547408,1710843042746,-7085.06283844,0.00031042,2]
[319547410,1710843042908,-3592.2607812,0.00031042,2]
[319547411,1710843042922,-1686.49250009,0.00031042,2]
[319547412,1710843042952,-4287.14358496,0.00031042,2]
[319547413,1710843042967,-3275.78951347,0.00031042,2]
[319547414,1710843042980,-23898.37671733,0.00031042,2]
[319547415,1710843042993,-5333.14096728,0.00031042,2]
[319547416,1710843043020,-10793.45987971,0.00031042,2]
[319547417,1710843043031,-154.24,0.00031079,2]
[319547418,1710843043042,-154.45832823,0.00031185,7]
[319547419,1710843043053,-151.16603037,0.00031203,7]
[319547420,1710843043064,-1922.773178,0.00031208,4]
[319547421,1710843043076,-349.0,0.0003138,2]
[319547422,1710843043087,-154.24,0.00031508,2]
[319547423,1710843043098,-150.53,0.0003154,2]
[319547424,1710843043110,-1937.45,0.0003161,2]
[319547425,1710843043121,-6672.89630176,0.00031672,3]
[319547426,1710843043132,-150.22582219,0.00031844,7]
[319547427,1710843043143,-154.24,0.00031937,2]
[319547428,1710843043154,-369.43514499,0.00032149,7]
[319547429,1710843043165,-154.24,0.00032366,2]
[319547430,1710843043176,-349.0,0.000327,2]
[319547432,1710843043187,-154.24,0.00032795,2]
[319547433,1710843043199,-2500.0,0.00032899,2]
[319547435,1710843043210,-80474.17861855,0.00032999,5]
[319547436,1710843043221,-824.10598841,0.00033,30]
[319547437,1710843043232,-31993.69551744,0.00033,30]
[319547438,1710843043243,-577.90147496,0.0003319,4]
[319547439,1710843043254,-345.10247127,0.00033231,7]
[319547440,1710843043268,-500.0,0.000333,30]
[319547441,1710843043280,-713.0,0.000333,30]
[319547442,1710843043291,-769.0,0.000333,30]
[319547443,1710843043302,-345.10247127,0.00033343,7]
[319547444,1710843043314,-152.81505466,0.00033729,7]
[319547445,1710843043325,-928.14,0.00033808,2]
[319547446,1710843043336,-164.36116901,0.0003382,7]
[319547447,1710843043347,-152.81505466,0.00033825,7]
[319547448,1710843043359,-341.56,0.00033838,120]
[319547449,1710843043370,-158.45099349,0.00033939,7]
[319547450,1710843043382,-349.0,0.0003402,2]
[319547451,1710843043394,-150.53,0.0003407,2]
[319547452,1710843043406,-6672.89630176,0.00034321,6]
[319547453,1710843043417,-1937.45,0.0003435,2]
[319547454,1710843043431,-164.36116901,0.00034565,7]
[319547455,1710843043444,-161.52428066,0.00034606,7]
[319547456,1710843043455,-1875.9607327,0.00035,15]
[319547457,1710843043468,-3900.0,0.00035,7]
[319547458,1710843043480,-587.0,0.00035065,5]
[319547459,1710843043493,-349.0,0.0003534,2]
[319547460,1710843043504,-158.29036304,0.00035445,7]
[319547461,1710843043519,-152.81505466,0.00035551,7]
[319547462,1710843043531,-150.22582219,0.00035574,7]
[319547463,1710843043542,-369.43514499,0.00035778,7]
[319547464,1710843043554,-161.52428066,0.00035888,7]
[319547465,1710843043565,-369.43514499,0.00035939,7]
[319547466,1710843043577,-271.30134152,0.00036,30]
[319547467,1710843043588,-150418.61449097,0.00036,2]
[319547468,1710843043599,-500.0,0.00036,2]
[319547469,1710843043611,-369.43514499,0.00036424,7]
[319547470,1710843043623,-164.36116901,0.00036493,7]
[319547471,1710843043634,-500.0,0.00036548,2]
[319547472,1710843043645,-150.53,0.000366,2]
[319547473,1710843043656,-349.0,0.0003666,2]
[319547474,1710843043668,-207.0,0.0003666,2]
[319547475,1710843043679,-200.0,0.000367,13]
[319547476,1710843043690,-161.52428066,0.00036712,7]
[319547477,1710843043701,-150.22582219,0.0003674,7]
[319547478,1710843043712,-440.9284,0.0003678,2]
[319547479,1710843043723,-151.6946114,0.00036789,2]
[319547480,1710843043734,-500.0,0.000368,13]
[319547481,1710843043746,-376.44100055,0.000368,11]
[319547482,1710843043757,-156.90919702,0.00036815,2]
[319547483,1710843043771,-156.01973643,0.00036828,7]
[319547484,1710843043783,-152.71973055,0.0003687,2]
[319547485,1710843043794,-152.71973055,0.0003687,2]
[319547486,1710843043806,-2730.54606471,0.00036877,2]
[319547487,1710843043816,-205.8056589,0.00036879,4]
[319547488,1710843043828,-250.0,0.00036879,2]
[319547489,1710843043839,-1612149.35655681,0.0003688,2]
[319547490,1710843043854,-1084.62087716,0.0003688,2]
[319547491,1710843043867,-7501.62763728,0.0003688,2]
[319547495,1710843045981,-670.45042951,0.00031041,4]
[319547496,1710843045990,-2231.25969729,0.0003688,2]
[319547497,1710843046001,-281.25216915,0.0003688,2]
[319547498,1710843046017,-655.19974353,0.0003688,2]
[319547499,1710843046157,-692.99734915,0.0003688,2]
[319547500,1710843046168,-936.67084348,0.0003688,2]
[319547527,1710843136059,153.41682369,0.00025215,2]
[319547528,1710843136240,415.81570397,0.00025155,2]
[319547529,1710843136284,389.53558225,0.00024558,2]
[319547530,1710843136749,389.53558225,0.00024918,2]
[319547531,1710843137230,389.53558225,0.00025959,2]
[319547532,1710843141462,209.83704954,0.00025732,2]
[319547533,1710843142855,158.46604482,0.00025747,2]
[319547535,1710843145904,157.80412463,0.00024865,2]
[319547536,1710843146022,162.9563727,0.0002506,2]
[319547537,1710843146192,157.80412463,0.00025164,2]
[319547538,1710843146314,162.9563727,0.0002563,2]
[319547539,1710843149742,152.6514813,0.00025577,2]
[319547542,1710843168862,170.41,0.00016712,2]
[319547546,1710843205618,155.0,0.00016712,2]
[319547547,1710843220481,1500.0,0.000247,2]
[319547548,1710843220846,1500.0,0.000242,2]
[319547550,1710843221380,2500.0,0.000237,2]
[319547551,1710843238729,1580.589431,0.0002594,2]
[319547554,1710843273841,1020.93863129,0.0002594,2]
[319547556,1710843293189,150.27770967,0.0002,2]
[319547558,1710843322844,1828.0,0.000197,2]
[319547559,1710843361463,1900.0,0.00025,6]
[319547562,1710843383018,25000.0,0.00026,2]
[319547563,1710843391787,247.55,0.00025626,2]
[319547564,1710843402329,25000.0,0.00026,2]
[319547566,1710843432210,25000.0,0.00026,2]
[319547567,1710843436253,166.66666666,0.00024644,2]
[319547568,1710843437172,583.79529265,0.00025101,2]
[319547569,1710843437836,166.66008375,0.00025157,2]
[319547570,1710843441709,487.04246068,0.00025047,2]
[319547571,1710843441863,170.65740372,0.00025795,2]
[319547572,1710843442805,487.04246068,0.00025925,2]
[319547573,1710843443393,175.36015052,0.00025131,2]
[319547574,1710843447129,153.31629833,0.00024792,2]
[319547575,1710843447398,25000.0,0.00026,2]
[319547576,1710843447604,153.31629833,0.00025479,2]
[319547577,1710843447948,162.19729849,0.00024476,2]
[319547578,1710843448887,154.11102107,0.00025129,2]
[319547581,1710843450442,151.28479555,0.00024714,2]
[319547582,1710843452027,151.28479555,0.00025266,2]
[319547583,1710843452291,151.28479555,0.0002558,2]
[319547584,1710843457315,-643.37964686,0.00026052,2]
[319547585,1710843457339,-1216.73937758,0.00026053,2]
[319547586,1710843457368,-444.94455248,0.00026053,2]
[319547587,1710843457392,-19373.70530424,0.00026053,2]
[319547588,1710843457416,-484.15348319,0.00026054,2]
[319547589,1710843457440,-972.57464842,0.00026054,2]
[319547590,1710843457463,-23188.28687588,0.00026054,2]
[319547591,1710843457488,-522.56926041,0.00026055,2]
[319547592,1710843457512,-12742.53062275,0.00026055,2]
[319547593,1710843457538,-3753.28833282,0.00026057,2]
[319547594,1710843457563,-1235.65513298,0.00026057,2]
[319547595,1710843457588,-160.62694543,0.00026057,2]
[319547596,1710843457618,-150.0,0.00026067,2]
[319547597,1710843457642,-4532.48189752,0.00026073,2]
[319547598,1710843457668,-151.28479555,0.00026156,2]
[319547599,1710843457693,-487.04246068,0.00026175,2]
[319547600,1710843457719,-155.0817669,0.00026188,2]
[319547601,1710843457743,-155.91675362,0.00026276,2]
[319547602,1710843457766,-162.19729849,0.00026376,2]
[319547603,1710843457789,-153.31629833,0.00026395,2]
[319547604,1710843457813,-583.79529265,0.00026427,2]
[319547605,1710843459365,296.79548759,0.00026051,2]
[319547606,1710843461139,522.56926041,0.00026051,2]
[319547607,1710843462942,180.12,0.0002,2]
[319547609,1710843477229,25000.0,0.00026,2]
[319547610,1710843496158,2730.94450522,0.000265,2]
[319547613,1710843517597,25000.0,0.00025,2]
[319547614,1710843525618,544.64676788,0.0002541,2]
[319547615,1710843581797,25000.0,0.00026,2]
[319547616,1710843592596,25000.0,0.00026,2]
[319547617,1710843599221,2100.0,0.00026,10]
[319547618,1710843599754,25000.0,0.00026,2]
[319547619,1710843629820,600.0,0.000247,2]
[319547620,1710843644140,25000.0,0.00026,2]
[319547623,1710843665394,600.0,0.00026,27]
[319547647,1710843712484,1800.0,0.00026,10]
[319547648,1710843736733,544.87560647,0.00025785,2]
[319547649,1710843743454,160.62694543,0.00024439,2]
[319547650,1710843746521,151.28588448,0.00024816,2]
[319547651,1710843748161,153.31629833,0.00024709,2]
[319547652,1710843748231,151.16603037,0.00025253,2]
[319547653,1710843748660,153.31629833,0.0002498,2]
[319547654,1710843749605,162.65349021,0.00025227,2]
[319547655,1710843749863,155.91675362,0.0002529,2]
[319547656,1710843863307,254.24,0.00024768,2]
[319547657,1710843910692,25000.0,0.00026,2]
[319547658,1710843917757,14219.27799418,0.00026,2]
[319547691,1710844036846,166.73556055,0.00025353,2]
[319547692,1710844036911,449.19375889,0.00025068,2]
[319547693,1710844037225,526.71308626,0.00024619,2]
[319547694,1710844037527,449.19375889,0.00025732,2]
[319547695,1710844037869,526.71308626,0.00025064,2]
[319547736,1710844040061,819.58043828,0.0002475,2]
[319547737,1710844046035,151.99896143,0.00025307,2]
[319547738,1710844046539,156.51853803,0.00024704,2]
[319547874,1710844062427,25000.0,0.000258,2]
[319547875,1710844068537,25000.0,0.000258,2]
[319547876,1710844090955,25000.0,0.000258,2]
[319547877,1710844098295,25000.0,0.000258,2]
[319547936,1710844231948,-334.91050729,0.00026057,2]
[319547938,1710844231958,-108.81213274,0.00026093,2]
[319547940,1710844231971,-41.18786726,0.00026093,2]
[319547942,1710844231981,-542.14574381,0.00026253,2]
[319547951,1710844232047,-54.26425619,0.00026253,2]
[319547953,1710844232057,-160.19798984,0.00026266,2]
[319547954,1710844232068,-756.88,0.00026318,2]
[319547955,1710844232078,-250.0,0.00026366,2]
[319547956,1710844232088,-5238.85775397,0.00026371,2]
[319547957,1710844232101,-7503.67286878,0.00026371,2]
[319547958,1710844232110,-500.0,0.00026372,2]
[319547959,1710844232121,-1462.27188986,0.00026372,2]
[319547960,1710844232422,-14256.45532618,0.00026372,2]
[319547961,1710844232434,-457.3269742,0.00026372,2]
[319547962,1710844232476,-952.5,0.00026372,2]
[319547963,1710844232488,-256.269,0.00026372,2]
[319547964,1710844232897,-5531.67680976,0.00026372,2]
[319547965,1710844232908,-159.98,0.00026399,2]
[319547966,1710844232919,-161.36,0.00026408,10]
[319547967,1710844232931,-170.78,0.0002646,120]
[319547968,1710844232941,-250.0,0.00026543,2]
[319547969,1710844232951,-173.92,0.00026595,2]
[319547970,1710844232962,-449.19375889,0.00026595,2]
[319547971,1710844232972,-160.32,0.00026647,2]
[319547972,1710844232982,-250.0,0.00026709,2]
[319547973,1710844232992,-529.04209343,0.00026829,2]
[319547974,1710844233002,-715.0,0.0002683,2]
[319547975,1710844233013,-159.98,0.00026858,2]
[319547976,1710844233024,-187.27,0.00026885,2]
[319547977,1710844233037,-160.62694543,0.00027022,2]
[319547979,1710844233048,-254.24,0.00027032,2]
[319547981,1710844233058,-526.71308626,0.00027235,2]
[319547984,1710844233069,-159.98,0.00027316,2]
[319547986,1710844233080,-189.82,0.00027517,2]
[319547988,1710844233090,-299.99,0.00027517,12]
[319547990,1710844233100,-7722.27451607,0.00027675,2]
[319547992,1710844233111,-526.71308626,0.00027685,2]
[319547994,1710844233121,-151.99896143,0.000277,2]
[319547996,1710844233131,-215.86038245,0.00027705,2]
[319547998,1710844233147,-155.58165773,0.00027705,2]
[319548000,1710844233158,-400.0,0.00027766,2]
[319548002,1710844233168,-159.98,0.00027775,2]
[319548004,1710844233178,-2255.43382274,0.00027803,2]
[319548007,1710844233190,-296.22591952,0.00027803,2]
[319548086,1710844238585,-572.91605347,0.00027793,2]
[319548091,1710844238622,-72.51078059,0.00027793,2]
[319548093,1710844238631,-645.42683406,0.00027793,2]
[319548095,1710844238641,-645.42683406,0.00027793,2]
[319548097,1710844238654,-343.67969107,0.00027793,2]
[319548101,1710844238678,-301.74714299,0.00027793,2]
[319548103,1710844238687,-645.42683406,0.00027793,2]
[319548105,1710844238697,-26295.91871175,0.00027803,2]
[319548108,1710844238721,-348.89593378,0.00027793,2]
[319548110,1710844238735,-296.53090028,0.00027793,2]
[319548112,1710844238745,-2906.66809973,0.00027803,2]
[319548114,1710844238756,-1814.98792548,0.00027803,2]
[319548117,1710844238770,-999.3301068,0.00027803,2]
[319548119,1710844238788,-3023.2088305,0.00027803,2]
[319548123,1710844238814,-484098.69423455,0.00027803,2]
[319548125,1710844238825,-449.19375889,0.00027807,2]
[319548127,1710844238835,-159.22,0.00027834,120]
[319548129,1710844238846,-819.58043828,0.00027837,2]
[319548131,1710844238857,-153.31629833,0.00027857,2]
[319548133,1710844238868,-152.69015607,0.00027891,2]
[319548135,1710844238879,-214.08,0.00027934,2]
[319548137,1710844238889,-160.62694543,0.00028118,2]
[319548139,1710844238899,-166.66666666,0.00028259,2]
[319548141,1710844238912,-162.19729849,0.00028302,2]
[319548143,1710844238921,-167.0,0.00028342,2]
[319548144,1710844238931,-151.28588448,0.00028353,2]
[319548147,1710844238941,-189.82,0.0002848,2]
[319548149,1710844238951,-449.19375889,0.0002859,2]
[319548151,1710844238961,-160.62694543,0.00028791,2]
[319548153,1710844238971,-526.71308626,0.00028804,2]
[319548154,1710844238981,-819.58043828,0.00028814,2]
[319548156,1710844238990,-162.65349022,0.00028906,2]
[319548158,1710844239001,-151.16603037,0.00029176,2]
[319548160,1710844239011,-151.28588448,0.00029178,2]
[319548162,1710844239020,-526.71308626,0.00029291,2]
[319548164,1710844239030,-254.24,0.00029296,2]
[319548166,1710844239039,-785.8024475,0.00029298,2]
[319548168,1710844239049,-151.28588448,0.00029386,2]
[319548170,1710844239058,-189.82,0.00029443,2]
[319548172,1710844239067,-167.0,0.00029512,2]
[319548174,1710844239077,-756.88,0.00029607,2]
[319548176,1710844239087,-151.99896143,0.00029655,2]
[319548178,1710844239096,-449.19375889,0.00029695,2]
[319548180,1710844239105,-6689.5445,0.00029798,2]
[319548182,1710844239115,-190.89966321,0.00029887,2]
[319548184,1710844239124,-332.42394085,0.00029896,2]
[319548186,1710844239134,-634.09656366,0.00029896,2]
[319548188,1710844239144,-1118.12299112,0.00029896,2]
[319548190,1710844239157,-272.72173078,0.00029896,2]
[319548192,1710844239166,-2576.20792361,0.00029896,2]
[319548194,1710844239176,-7500.00000968,0.00029897,2]
[319548196,1710844239185,-444.47065312,0.00029897,2]
[319548197,1710844239195,-102624.1909,0.00029898,2]
[319548199,1710844239205,-172.2257,0.000299,2]
[319548202,1710844239215,-500.0,0.000299,2]
[319548204,1710844239225,-200.0,0.000299,10]
[319548206,1710844239236,-200.74122027,0.00029997,2]
[319548208,1710844239247,-409.6581285,0.00029998,2]
[319548209,1710844239258,-5504.19849091,0.00029998,2]
[319548212,1710844239269,-214.29692718,0.00029998,2]
[319548213,1710844239279,-660.49304242,0.00029998,2]
[319548216,1710844239289,-179.68878603,0.00029998,2]
[319548217,1710844239299,-166.0502098,0.00029998,2]
[319548220,1710844239309,-155.0,0.00029998,2]
[319548221,1710844239319,-204.4040776,0.00029998,2]
[319548223,1710844239329,-193.42559001,0.00029998,2]
[319548224,1710844239338,-373.81422416,0.00029998,2]
[319548226,1710844239348,-160.22098966,0.00029998,2]
[319548228,1710844239358,-151.28588448,0.00030094,7]
[319548230,1710844239368,-194.65140534,0.00030101,5]
[319548232,1710844239378,-526.71308626,0.00030255,7]
[319548234,1710844239388,-211.0,0.00030317,2]
[319548236,1710844239398,-121885.10632489,0.00030417,4]
[319548238,1710844239409,-153.31629833,0.00030544,7]
[319548240,1710844239419,-526.71308626,0.00030607,7]
[319548242,1710844239428,-167.0,0.00030681,2]
[319548244,1710844239438,-153.31629833,0.00030803,7]
[319548246,1710844239449,-150.9130171,0.00030858,7]
[319548248,1710844239460,-153.31629833,0.00030894,7]
[319548250,1710844239470,-162.65349022,0.0003105,7]
[319548252,1710844239481,-155.0817669,0.00031153,7]
[319548254,1710844239491,-400.0,0.00031236,2]
[319548256,1710844239501,-526.71308626,0.00031261,7]
[319548258,1710844239510,-159.22,0.00031314,120]
[319548260,1710844239520,-449.19375889,0.00031324,7]
[319548262,1710844239530,-166.66666666,0.00031415,7]
[319548264,1710844239539,-151.28588448,0.00031436,7]
[319548265,1710844239549,-162.19729849,0.00031459,7]
[319548267,1710844239559,-254.24,0.0003156,2]
[319548269,1710844239568,-153.31629833,0.00031634,7]
[319548271,1710844239578,-151.28588448,0.00031753,7]
[319548272,1710844239587,-449.19375889,0.00031832,7]
[319548274,1710844239597,-167.0,0.00031851,2]
[319548276,1710844239607,-154.11102107,0.00032305,7]
[319548278,1710844239617,-526.71308626,0.00032841,7]
[319548281,1710844239627,-756.88,0.00032897,2]
[319548282,1710844239637,-449.19375889,0.00032987,7]
[319548284,1710844239647,-167.0,0.0003302,2]
[319548286,1710844239658,-526.71308626,0.00033098,7]
[319548298,1710844239810,-526.71308626,0.0003328,7]
[319548300,1710844239821,-153.31629833,0.00033322,7]
[319548302,1710844239831,-151.99896143,0.00033449,7]
[319548303,1710844239842,-158.32,0.000335,2]
[319548304,1710844239852,-254.24,0.00033824,2]
[319548305,1710844239862,-8648.8282,0.00034221,2]
[319548306,1710844239872,-151.28588448,0.00034261,7]
[319548307,1710844239882,-526.71308626,0.00034323,7]
[319548308,1710844239893,-500.0,0.000346,2]
[319548309,1710844239905,-400.0,0.00034707,2]
[319548310,1710844239915,-159.22,0.00034793,120]
[319548311,1710844239926,-153.31629833,0.00034899,7]